{"text_format":"3","workbook":"xlsx","n_sheets":1,"sheets":["История  37 лицей"],"not_rendered":{"defined_names":1},"read":"whole","date_system":"1900"}

{"sheet":"История  37 лицей","index":0,"n_rows":108,"n_cols":15,"rows_kept":108}
["№","Фамлия","Имя","Отчество","Пол","Участник с ОВЗ","Класс","Класс участия","Балл","Макс. балл","Статус","Призер МЭ прошлого года","Учитель","Место работы учителя","Предмет"]
[1,"Барабаш","Богдан","Алексеевич","М","нет",5,5,52,100,"призер","нет","Бижик Регина Рифнуровна","МБОУ Многопрофильный лицей №37\" НМР РТ","История"]
[2,"Матросова ","Виктория","Олеговна","Ж","нет",5,5,32,100,"участник","нет","Бижик Регина Рифнуровна","МБОУ Многопрофильный лицей №37\" НМР РТ","История"]
[3,"Фофонова","Дарья","Артёмовна","Ж","нет",5,5,30,100,"участник","нет","Бижик Регина Рифнуровна","МБОУ Многопрофильный лицей №37\" НМР РТ","История"]
[4,"Юнусов","Алмаз","Рустемович","М","нет",5,5,28,100,"участник","нет","Бижик Регина Рифнуровна","МБОУ Многопрофильный лицей №37\" НМР РТ","История"]
[5,"Гумарова","Аделя","Тимуровна","Ж","нет",5,5,27,100,"участник","нет","Бижик Регина Рифнуровна","МБОУ Многопрофильный лицей №37\" НМР РТ","История"]
[6,"Буренкова","Вероника","Евгеньевна","Ж","нет",5,5,20,100,"участник","нет","Бижик Регина Рифнуровна","МБОУ Многопрофильный лицей №37\" НМР РТ","История"]
[7,"Афанасьева ","София","Сергеевна","Ж","нет",5,5,14,100,"участник","нет","Бижик Регина Рифнуровна","МБОУ Многопрофильный лицей №37\" НМР РТ","История"]
[8,"Казанцев","Виталий","Степанович","М","нет",5,5,14,100,"участник","нет","Бижик Регина Рифнуровна","МБОУ Многопрофильный лицей №37\" НМР РТ","История"]
[9,"Анисимова ","Ева","Игоревна","Ж","нет",5,5,13,100,"участник","нет","Бижик Регина Рифнуровна","МБОУ Многопрофильный лицей №37\" НМР РТ","История"]
[10,"Сосунов","Дмитрий","Андреевич","М","нет",5,5,8,100,"участник","нет","Бижик Регина Рифнуровна","МБОУ Многопрофильный лицей №37\" НМР РТ","История"]
[11,"Зайдуллин ","Адель","Рамилевич","М","нет",6,6,53,100,"призер","нет","Ахметова Римма Масхутовна","МБОУ Многопрофильный лицей №37\" НМР РТ","История"]
[12,"Подбержина","Елизавета","Андреевна","Ж","нет",6,6,52,100,"призер","нет","Ахметова Римма Масхутовна","МБОУ Многопрофильный лицей №37\" НМР РТ","История"]
[13,"Хамидуллин","Ислам","Ильмирович","М","нет",6,6,51,100,"призер","нет","Ахметова Римма Масхутовна","МБОУ Многопрофильный лицей №37\" НМР РТ","История"]
[14,"Дарьина","Мария","Витальевна","Ж","нет",6,6,51,100,"призер","нет","Ахметова Римма Масхутовна","МБОУ Многопрофильный лицей №37\" НМР РТ","История"]
[15,"Парёнкина","Карина","Олеговна","Ж","нет",6,6,39,100,"участник","нет","Лукавченко Ксения Михайловна","МБОУ Многопрофильный лицей №37\" НМР РТ","История"]
[16,"Низамова ","Алина","Хамитовна","Ж","нет",6,6,38,100,"участник","нет","Лукавченко Ксения Михайловна","МБОУ Многопрофильный лицей №37\" НМР РТ","История"]
[17,"Сахабутдинова ","Диля","Рафисовна","Ж","нет",6,6,38,100,"участник","нет","Лукавченко Ксения Михайловна","МБОУ Многопрофильный лицей №37\" НМР РТ","История"]
[18,"Хуснутдинова","Камила","Маратовна","Ж","нет",6,6,38,100,"участник","нет","Лукавченко Ксения Михайловна","МБОУ Многопрофильный лицей №37\" НМР РТ","История"]
[19,"Никитин","Михаил","Владимирович","М","нет",6,6,37,100,"участник","нет","Лукавченко Ксения Михайловна","МБОУ Многопрофильный лицей №37\" НМР РТ","История"]
[20,"Минеханова","Лина","Ирековна","Ж","нет",6,6,36,100,"участник","нет","Лукавченко Ксения Михайловна","МБОУ Многопрофильный лицей №37\" НМР РТ","История"]
[21,"Ульянин","Николай","Владимирович","М","нет",6,6,32,100,"участник","нет","Ахметова Римма Масхутовна","МБОУ Многопрофильный лицей №37\" НМР РТ","История"]
[22,"Гайнутдинова","Динара","Дамировна","Ж","нет",6,6,32,100,"участник","нет","Лукавченко Ксения Михайловна","МБОУ Многопрофильный лицей №37\" НМР РТ","История"]
[23,"Мухаметдинова","Кира","Ленаровна","Ж","нет",6,6,29,100,"участник","нет","Ахметова Римма Масхутовна","МБОУ Многопрофильный лицей №37\" НМР РТ","История"]
[24,"Черемисина","София","Андреевна","Ж","нет",6,6,27,100,"участник","нет","Лукавченко Ксения Михайловна","МБОУ Многопрофильный лицей №37\" НМР РТ","История"]
[25,"Утробин","Алексей","Ильич","М","нет",6,6,25,100,"участник","нет","Ахметова Римма Масхутовна","МБОУ Многопрофильный лицей №37\" НМР РТ","История"]
[26,"Королёв","Кирилл","Николаевич","М","нет",6,6,24,100,"участник","нет","Ахметова Римма Масхутовна","МБОУ Многопрофильный лицей №37\" НМР РТ","История"]
[27,"Гатина","Лейла","Ренатовна","Ж","нет",6,6,22,100,"участник","нет","Ахметова Римма Масхутовна","МБОУ Многопрофильный лицей №37\" НМР РТ","История"]
[28,"Ваструкова","Екатерина","Андреевна","Ж","нет",6,6,20,100,"участник","нет","Ахметова Римма Масхутовна","МБОУ Многопрофильный лицей №37\" НМР РТ","История"]
[29,"Чумакова","Милена","Всеволодовна","Ж","нет",6,6,20,100,"участник","нет","Ахметова Римма Масхутовна","МБОУ Многопрофильный лицей №37\" НМР РТ","История"]
[30,"Миронов","Ярослав","Александрович","М","нет",6,6,19,100,"участник","нет","Ахметова Римма Масхутовна","МБОУ Многопрофильный лицей №37\" НМР РТ","История"]
[31,"Маркелова","Ангелина","Сергеевна","Ж","нет",6,6,18,100,"участник","нет","Ахметова Римма Масхутовна","МБОУ Многопрофильный лицей №37\" НМР РТ","История"]
[32,"Байрашова ","Софья","Владимировна","Ж","нет",6,6,16,100,"участник","нет","Ахметова Римма Масхутовна","МБОУ Многопрофильный лицей №37\" НМР РТ","История"]
[33,"Ильясов","Тимур","Айдарович","М","нет",6,6,15,100,"участник","нет","Ахметова Римма Масхутовна","МБОУ Многопрофильный лицей №37\" НМР РТ","История"]
[34,"Бигеева","София","Рафаэлевна","Ж","нет",6,6,14,100,"участник","нет","Ахметова Римма Масхутовна","МБОУ Многопрофильный лицей №37\" НМР РТ","История"]
[35,"Гильмуллина","Айсылу","Ильнуровна","Ж","нет",6,6,14,100,"участник","нет","Ахметова Римма Масхутовна","МБОУ Многопрофильный лицей №37\" НМР РТ","История"]
[36,"Новикова","Алена","Артемовна","Ж","нет",6,6,14,100,"участник","нет","Ахметова Римма Масхутовна","МБОУ Многопрофильный лицей №37\" НМР РТ","История"]
[37,"Савельева","Анастасия","Владимировна","Ж","нет",6,6,14,100,"участник","нет","Ахметова Римма Масхутовна","МБОУ Многопрофильный лицей №37\" НМР РТ","История"]
[38,"Загидуллина","Диляра","Райхановна","Ж","нет",6,6,13,100,"участник","нет","Ахметова Римма Масхутовна","МБОУ Многопрофильный лицей №37\" НМР РТ","История"]
[39,"Кагарманов","Арсений","Тимурович","М","нет",6,6,10,100,"участник","нет","Ахметова Римма Масхутовна","МБОУ Многопрофильный лицей №37\" НМР РТ","История"]
[40,"Керимова","Лилита","Руслановна","Ж","нет",6,6,8,100,"участник","нет","Ахметова Римма Масхутовна","МБОУ Многопрофильный лицей №37\" НМР РТ","История"]
[41,"Бадртдинова","Алина","Руслановна","Ж","нет",7,7,53,100,"призер","нет","Савельева Ольга Ивановна",{"$f":"$N$41","v":"МБОУ Многопрофильный лицей №37\" НМР РТ"},{"$f":"O32","v":"История"}]
[42,"Гришин","Егор","Максимович","М","нет",7,7,31,100,"участник","нет","Савельева Ольга Ивановна","МБОУ Многопрофильный лицей №37\" НМР РТ","История"]
[43,"Музафарова","Милана","Раилевна","Ж","нет",7,7,29,{"$f":"J27","v":100},"участник","нет","Савельева Ольга Ивановна","МБОУ Многопрофильный лицей №37\" НМР РТ","История"]
[44,"Мансуров","Ярослав","Евгеньевич","М","нет",7,7,28,100,"участник","нет","Савельева Ольга Ивановна","МБОУ Многопрофильный лицей №37\" НМР РТ","История"]
[45,"Муравьев","Ярослав","Максимович","М","нет",7,7,26,100,"участник","нет","Савельева Ольга Ивановна","МБОУ Многопрофильный лицей №37\" НМР РТ","История"]
[46,"Байхузин","Булат","Ильсурович","М","нет",7,7,25,100,"участник","нет",{"$f":"M42","v":"Савельева Ольга Ивановна"},"МБОУ Многопрофильный лицей №37\" НМР РТ","История"]
[47,"Низамиева","Лейсан","Инсафовна","Ж","нет",7,7,24,100,"участник","нет","Савельева Ольга Ивановна","МБОУ Многопрофильный лицей №37\" НМР РТ","История"]
[48,"Бабушкина","Диана","Сергеевна","Ж","нет",7,7,23,100,"участник","нет","Савельева Ольга Ивановна","МБОУ Многопрофильный лицей №37\" НМР РТ","История"]
[49,"Якупов","Тимур","Артемович","М","нет",7,7,22,100,"участник","нет","Савельева Ольга Ивановна","МБОУ Многопрофильный лицей №37\" НМР РТ","История"]
[50,"Ахметжанов","Нурсултан","Разумович","М","нет",7,7,21,100,"участник","нет","Савельева Ольга Ивановна",{"$f":"N45","v":"МБОУ Многопрофильный лицей №37\" НМР РТ"},"История"]
[51,"Казаков","Ярослав","Александрович","М","нет",7,7,21,100,"участник","нет",{"$f":"M42","v":"Савельева Ольга Ивановна"},"МБОУ Многопрофильный лицей №37\" НМР РТ","История"]
[52,"Измайлова","Диляра","Альбертовна","Ж","нет",7,7,20,100,"участник","нет","Савельева Ольга Ивановна","МБОУ Многопрофильный лицей №37\" НМР РТ","История"]
[53,"Шандренкова","Анастасия","Александровна","Ж","нет",7,7,19,100,"участник","нет","Савельева Ольга Ивановна","МБОУ Многопрофильный лицей №37\" НМР РТ","История"]
[54,"Шарифуллина","Эмилия","Ильнаровна","Ж","нет",7,7,15,100,"участник","нет","Савельева Ольга Ивановна","МБОУ Многопрофильный лицей №37\" НМР РТ","История"]
[55,"Ахметова","Ильзира","Радиковна","Ж","нет",7,7,12,100,"участник","нет","Савельева Ольга Ивановна","МБОУ Многопрофильный лицей №37\" НМР РТ","История"]
[56,"Ильясова","Алина","Фанилевна","Ж","нет",8,8,51,100,"призер","нет","Ахметова Римма Масхутовна","МБОУ Многопрофильный лицей №37\" НМР РТ","История"]
[57,"Минахметов","Марат","Ибрагимович ","М","нет",8,8,26,100,"участник","нет","Ахметова Римма Масхутовна","МБОУ Многопрофильный лицей №37\" НМР РТ","История"]
[58,"Хасанов","Хасан","Маратович","М","нет",8,8,24,100,"участник","нет","Ахметова Римма Масхутовна","МБОУ Многопрофильный лицей №37\" НМР РТ","История"]
[59,"Каримова","Индира","Ленаровна ","Ж","нет",8,8,23,100,"участник","нет","Ахметова Римма Масхутовна","МБОУ Многопрофильный лицей №37\" НМР РТ","История"]
[60,"Гильманова","Самина","Рустемовна ","Ж","нет",8,8,22,100,"участник","нет","Ахметова Римма Масхутовна","МБОУ Многопрофильный лицей №37\" НМР РТ","История"]
[61,"Норин","Кирилл","Иванович","М","нет",8,8,22,100,"участник","нет","Ахметова Римма Масхутовна","МБОУ Многопрофильный лицей №37\" НМР РТ","История"]
[62,"Фаттахова","Лейла","Ильшатовна","Ж","нет",8,8,19,100,"участник","нет","Ахметова Римма Масхутовна","МБОУ Многопрофильный лицей №37\" НМР РТ","История"]
[63,"Хузин","Риан","Робертович","М","нет",8,8,17,100,"участник","нет","Ахметова Римма Масхутовна","МБОУ Многопрофильный лицей №37\" НМР РТ","История"]
[64,"Гилметдинов","Айнур","Ильнурович ","М","нет",8,8,16,100,"участник","нет","Ахметова Римма Масхутовна","МБОУ Многопрофильный лицей №37\" НМР РТ","История"]
[65,"Усманова","Малика","Айратовна","Ж","нет",8,8,15,100,"участник","нет","Ахметова Римма Масхутовна","МБОУ Многопрофильный лицей №37\" НМР РТ","История"]
[66,"Байрашова ","Дарья","Владимировна","Ж","нет",8,8,34,100,"участник","нет","Бижик Регина Рифнуровна","МБОУ Многопрофильный лицей №37\" НМР РТ",{"$f":"O61","v":"История"}]
[67,"Куклина","Злата","Витальевна","Ж","нет",8,8,35,100,"участник","нет","Бижик Регина Рифнуровна",{"$f":"N62","v":"МБОУ Многопрофильный лицей №37\" НМР РТ"},"История"]
[68,"Абдуллин","Эмир","Эльмарович","М","нет",8,8,14,100,"участник","нет","Бижик Регина Рифнуровна",{"$f":"N63","v":"МБОУ Многопрофильный лицей №37\" НМР РТ"},"История"]
[69,"Ульданов","Рафиль","Ниязович","М","нет",8,8,16,100,"участник","нет","Бижик Регина Рифнуровна",{"$f":"N64","v":"МБОУ Многопрофильный лицей №37\" НМР РТ"},"История"]
[70,"Гайдуллин","Ярослав","Владимирович","М","нет",8,8,12,100,"участник","нет","Бижик Регина Рифнуровна",{"$f":"N65","v":"МБОУ Многопрофильный лицей №37\" НМР РТ"},"История"]
[71,"Исаева","Яна","Сергеевна","Ж","нет",8,8,21,100,"участник","нет","Бижик Регина Рифнуровна","МБОУ Многопрофильный лицей №37\" НМР РТ","История"]
[72,"Галкина","Дарья","Александровна","Ж","нет",8,8,10,100,"участник","нет","Бижик Регина Рифнуровна","МБОУ Многопрофильный лицей №37\" НМР РТ","История"]
[73,"Габдрахманов","Наиль ","Шамилевич","М","нет",8,8,24,100,"участник","нет","Бижик Регина Рифнуровна","МБОУ Многопрофильный лицей №37\" НМР РТ","История"]
[74,"Исхакова ","Юлия","Федоровна","Ж","нет",8,8,23,100,"участник","нет","Бижик Регина Рифнуровна","МБОУ Многопрофильный лицей №37\" НМР РТ","История"]
[75,"Ильмухина","Ульяна","Игоревна","Ж","нет",8,8,21,100,"участник","нет","Бижик Регина Рифнуровна","МБОУ Многопрофильный лицей №37\" НМР РТ","История"]
[76,"Темиргазина","Динара","Данилевна","Ж","нет",9,9,75,100,"победитель","нет","Савельева Ольга Ивановна","МБОУ Многопрофильный лицей №37\" НМР РТ","История"]
[77,"Кямякова","Камилла","Вагизовна","Ж","нет",9,9,44,100,"участник","нет","Савельева Ольга Ивановна","МБОУ Многопрофильный лицей №37\" НМР РТ","История"]
[78,"Крутикова","Елизавета","Александровна","Ж","нет",9,9,42,100,"участник","нет","Савельева Ольга Ивановна","МБОУ Многопрофильный лицей №37\" НМР РТ","История"]
[79,"Никифорова","Ангелина","Артёмовна","Ж","нет",9,9,41,100,"участник","нет","Савельева Ольга Ивановна","МБОУ Многопрофильный лицей №37\" НМР РТ","История"]
[80,"Павлов","Ярослав","Павлович","М","нет",9,9,37,100,"участник","нет","Савельева Ольга Ивановна","МБОУ Многопрофильный лицей №37\" НМР РТ","История"]
[81,"Шаймарданов","Артур","Ринатович","М","нет",9,9,24,100,"участник","нет",{"$f":"M77","v":"Савельева Ольга Ивановна"},"МБОУ Многопрофильный лицей №37\" НМР РТ",{"$f":"O76","v":"История"}]
[82,"Никифорова","Карина","Денисовна","Ж","нет",9,9,23,100,"участник","нет","Савельева Ольга Ивановна",{"$f":"N77","v":"МБОУ Многопрофильный лицей №37\" НМР РТ"},"История"]
[83,"Сельсков","Илья","Михайлович","М","нет",9,9,22,100,"участник","нет","Савельева Ольга Ивановна",{"$f":"N78","v":"МБОУ Многопрофильный лицей №37\" НМР РТ"},"История"]
[84,"Багашев","Булат","Марселевич","М","нет",9,9,21,100,"участник","нет","Савельева Ольга Ивановна",{"$f":"N79","v":"МБОУ Многопрофильный лицей №37\" НМР РТ"},"История"]
[85,"Мулюкова","Алия","Алмазовна","Ж","нет",9,9,21,100,"участник","нет","Савельева Ольга Ивановна",{"$f":"N80","v":"МБОУ Многопрофильный лицей №37\" НМР РТ"},"История"]
[86,"Гайнутдинов","Самат","Рустемович","М","нет",9,9,19,100,"участник","нет","Савельева Ольга Ивановна","МБОУ Многопрофильный лицей №37\" НМР РТ","История"]
[87,"Петухов","Тимур","Альбертович","М","нет",9,9,18,100,"участник","нет","Савельева Ольга Ивановна","МБОУ Многопрофильный лицей №37\" НМР РТ","История"]
[88,"Сахабутдинова Риана",null,"Маратовна","Ж","нет",9,9,18,100,"участник","нет","Савельева Ольга Ивановна","МБОУ Многопрофильный лицей №37\" НМР РТ","История"]
[89,"Мустафин","Ильсур","Рустемович","М","нет",9,9,17,100,"участник","нет","Савельева Ольга Ивановна","МБОУ Многопрофильный лицей №37\" НМР РТ","История"]
[90,"Рахматуллина","Лиана","Айратовна","Ж","нет",9,9,17,100,"участник","нет","Савельева Ольга Ивановна","МБОУ Многопрофильный лицей №37\" НМР РТ","История"]
[91,"Виноградова","Анастасия","Сергеевна","Ж","нет",9,9,16,100,"участник","нет",{"$f":"M87","v":"Савельева Ольга Ивановна"},"МБОУ Многопрофильный лицей №37\" НМР РТ","История"]
[92,"Яфаров","Данил","Рафисович","М","нет",9,9,15,100,"участник","нет","Савельева Ольга Ивановна","МБОУ Многопрофильный лицей №37\" НМР РТ",{"$f":"O87","v":"История"}]
[93,"Раззаренов","Ярослав","Евгеньевич","М","нет",9,9,14,100,"участник","нет","Савельева Ольга Ивановна",{"$f":"N88","v":"МБОУ Многопрофильный лицей №37\" НМР РТ"},"История"]
[94,"Чесаков","Артур","Альбертович","М","нет",9,9,12,100,"участник","нет","Савельева Ольга Ивановна",{"$f":"N89","v":"МБОУ Многопрофильный лицей №37\" НМР РТ"},"История"]
[95,"Седышев","Данил","Павлович","М","нет",9,9,11,100,"участник","нет","Савельева Ольга Ивановна",{"$f":"N90","v":"МБОУ Многопрофильный лицей №37\" НМР РТ"},"История"]
[96,"Гилязетдинов","Данис","Рустамович","М","нет",9,9,10,100,"участник","нет","Савельева Ольга Ивановна",{"$f":"N91","v":"МБОУ Многопрофильный лицей №37\" НМР РТ"},"История"]
[97,"Рафиков","Ринат","Рустемович","М","нет",9,9,9,100,"участник","нет","Савельева Ольга Ивановна","МБОУ Многопрофильный лицей №37\" НМР РТ","История"]
[98,"Лебедева","Вероника","Андреевна","Ж","нет",11,11,87,100,"победитель","да","Савельева Ольга Ивановна","МБОУ Многопрофильный лицей №37\" НМР РТ","История"]
[99,"Юртова","Анастасия","Петровна","Ж","нет",11,11,45,100,"участник","нет","Савельева Ольга Ивановна","МБОУ Многопрофильный лицей №37\" НМР РТ","История"]
[100,"Васильева","Дарья","Викторовна","Ж","нет",11,11,40,100,"участник","нет","Савельева Ольга Ивановна","МБОУ Многопрофильный лицей №37\" НМР РТ","История"]
[101,"Исакиева","Миланья","Юрьевна","Ж","нет",11,11,39,100,"участник","нет",{"$f":"M97","v":"Савельева Ольга Ивановна"},"МБОУ Многопрофильный лицей №37\" НМР РТ","История"]
[102,"Миронова","Дарья","Александровна","Ж","нет",11,11,35,100,"участник","нет","Савельева Ольга Ивановна","МБОУ Многопрофильный лицей №37\" НМР РТ","История"]
[103,"Перцева ","Ксения","Александровна","Ж","нет",11,11,33,100,"участник","нет","Савельева Ольга Ивановна","МБОУ Многопрофильный лицей №37\" НМР РТ","История"]
[104,"Косова","Екатерина","Алексеевна","Ж","нет",11,11,26,100,"участник","нет","Савельева Ольга Ивановна","МБОУ Многопрофильный лицей №37\" НМР РТ","История"]
[105,"Митрофанова","Дарья","Сергеевна","Ж","нет",11,11,19,100,"участник","нет","Савельева Ольга Ивановна","МБОУ Многопрофильный лицей №37\" НМР РТ","История"]
[106,"Садыкова","Самира","Ренатовна","Ж","нет",11,11,19,100,"участник","нет","Савельева Ольга Ивановна","МБОУ Многопрофильный лицей №37\" НМР РТ","История"]
[107,"Латыпова","Лия","Марселевна","Ж","нет",11,11,12,100,"участник","нет","Савельева Ольга Ивановна","МБОУ Многопрофильный лицей №37\" НМР РТ","История"]